bitfinex/quotes_ETHUSD_20240827
["timestamp","ask_amount","ask_price","bid_price","bid_amount"]
[1724795794530,10.36805,2492.6,2491.0,0.55]
[1724795794842,10.36805,2492.6,2490.8,0.9528]
[1724795795431,10.36805,2492.6,2490.9,2.0]
[1724795795643,9.4255,2492.6,2491.0,0.55]
[1724795796005,9.4255,2492.6,2491.0,5.78846921]
[1724795796358,9.4255,2493.9,2491.2,2.0]
[1724795796537,0.10029044,2493.8,2491.3,0.55]
[1724795796844,0.10029039,2493.7,2491.3,1.09046921]
[1724795797005,0.10029039,2493.7,2491.3,4.09046921]
[1724795797205,10.02367088,2493.9,2491.9,2.0]
[1724795797402,1.10263424,2493.8,2492.0,0.55]
[1724795797643,0.10026715,2493.7,2492.0,3.55]
[1724795797847,0.10026232,2493.8,2492.0,3.55]
[1724795798045,0.10026232,2493.8,2492.1,0.54046921]
[1724795798232,0.10026232,2493.8,2492.2,0.55]
[1724795798439,0.10026232,2493.8,2492.3,0.54046921]
[1724795798966,0.10026232,2493.8,2492.2,0.55]
[1724795799124,9.4255,2493.9,2492.5,2.0]
[1724795799469,9.4255,2493.9,2492.6,0.55]
[1724795799609,9.4255,2493.9,2492.6,3.0]
[1724795800137,0.10024879,2493.8,2492.4,1.698]
[1724795800618,0.10025864,2493.7,2492.4,1.698]
[1724795800828,9.4137,2494.7,2492.7,2.0]
[1724795801027,0.10023633,2494.6,2492.4,1.698]
[1724795801232,1.61411877,2494.6,2492.4,2.82010983]
[1724795801439,0.10025102,2494.6,2492.5,6.84708729]
[1724795802163,0.10025102,2494.6,2492.6,3.55]
[1724795802656,0.10025102,2494.6,2492.7,2.0]
[1724795802957,0.10025102,2494.6,2492.8,0.55]
[1724795803163,1.05164612,2494.6,2492.8,3.55]
[1724795804841,1.05164612,2494.6,2492.4,1.698]
[1724795805025,9.5733,2494.5,2492.4,1.698]
[1724795805229,0.65027546,2494.4,2492.4,1.698]
[1724795805451,1.02235755,2494.3,2492.0,5.72497746]
[1724795805661,1.02235755,2494.3,2492.5,0.58164062]
[1724795805868,1.02235755,2494.3,2492.4,0.54046921]
[1724795807656,0.10025801,2494.2,2492.4,0.54046921]
[1724795807968,9.5733,2494.5,2492.5,2.55]
[1724795807969,0.10025801,2494.4,2492.5,2.55]
[1724795808184,9.5733,2494.5,2492.9,4.01138]
[1724795808362,9.5733,2495.3,2493.1,6.01097]
[1724795808567,10.14579775,2495.3,2493.4,2.0]
[1724795808751,9.5733,2495.3,2493.5,1.698]
[1724795808951,9.5733,2495.3,2493.6,0.55]
[1724795809539,0.1002059,2495.2,2493.6,0.55]
[1724795809735,1.06755649,2495.2,2493.6,0.55]
[1724795809977,1.06755649,2495.2,2493.6,0.54046921]
[1724795810182,1.06755649,2495.2,2493.5,4.698]
[1724795810487,1.06755649,2495.2,2492.8,5.72497746]
[1724795810850,1.06755649,2495.2,2492.9,0.54046921]
[1724795811053,1.06408565,2495.1,2492.9,0.54046921]
[1724795811254,0.10023549,2495.0,2492.9,0.54046921]
[1724795811842,0.10023549,2495.0,2492.8,7.72497746]
[1724795812336,0.10023549,2495.0,2492.8,8.26544667]
[1724795813468,0.10023549,2495.0,2492.9,3.0]
[1724795813641,9.5177,2494.9,2492.9,3.0]
[1724795813843,9.5177,2494.9,2492.7,6.738]
[1724795813844,0.10025268,2494.8,2492.8,3.0]
[1724795814082,9.5177,2494.6,2492.4,5.72497746]
[1724795814281,0.10026388,2494.5,2492.4,5.72497746]
[1724795814489,0.10026388,2494.5,2492.4,7.72497746]
[1724795814678,0.10026388,2494.5,2492.5,0.54046921]
[1724795814844,0.10026388,2494.5,2492.5,1.11081982]
[1724795815186,1.06206027,2494.5,2492.5,1.11081982]
[1724795815353,0.96179639,2494.5,2492.5,4.11081982]
[1724795815681,0.10025218,2494.4,2492.5,4.11081982]
[1724795816450,0.10025218,2494.4,2492.6,0.55]
[1724795816652,0.10025218,2494.4,2492.7,1.11081982]
[1724795816875,0.10024237,2494.5,2492.8,3.698]
[1724795817091,0.10024237,2494.5,2492.9,4.09046921]
[1724795817258,9.5177,2494.6,2493.0,0.57035061]
[1724795817467,9.5177,2494.6,2493.1,0.55]
[1724795817856,0.10022519,2494.5,2493.1,0.55]
[1724795818086,0.10022519,2494.5,2493.0,0.57035061]
[1724795821868,1.06201771,2494.5,2493.0,0.57035061]
[1724795822466,1.06201771,2494.5,2492.8,7.42297746]
[1724795822670,0.10024104,2494.4,2492.8,7.42297746]
[1724795822870,9.0003,2495.2,2492.8,7.42297746]
[1724795822871,0.10024317,2495.1,2492.8,7.42297746]
[1724795823681,0.027373,2493.2,2492.8,7.42297746]
[1724795823890,0.027373,2493.2,2492.9,3.0]
[1724795824296,0.10025082,2494.0,2492.9,3.0]
[1724795824669,1.0103059,2494.0,2492.3,2.0]
[1724795825470,1.0103059,2494.0,2492.4,0.55]
[1724795826100,1.0103059,2494.0,2492.3,2.0]
[1724795826311,1.0103059,2494.0,2492.3,5.0]
[1724795827200,0.74942476,2493.9,2492.3,3.0]
[1724795827412,0.10026216,2493.8,2492.1,0.41802879]
[1724795827564,0.10028449,2493.7,2491.9,0.4028]
[1724795827965,0.10028449,2493.7,2491.9,0.82191013]
[1724795828504,0.74942476,2493.9,2489.8,1.66421339]
[1724795828505,5.72497746,2492.0,2489.8,1.66421339]
[1724795828701,2.61630024,2493.6,2489.6,4.60235834]
[1724795828702,6.47708955,2491.9,2489.6,4.60235834]
[1724795828924,6.47708955,2491.9,2489.9,0.41846224]
[1724795828925,5.72497746,2491.4,2489.9,0.41846224]
[1724795829065,5.24177451,2491.3,2489.6,1.698]
[1724795829275,0.10037774,2491.2,2489.6,1.698]
[1724795831140,9.4755,2492.1,2490.2,2.0]
[1724795831430,9.4755,2492.1,2490.1,5.72497746]
[1724795831431,9.4755,2492.1,2490.7,2.0]
[1724795831599,1.75973276,2493.5,2490.5,5.72497746]
[1724795831600,9.4755,2492.9,2491.4,2.0]
[1724795831806,11.23523276,2493.5,2491.7,2.0]
[1724795832133,1.75973276,2493.5,2492.7,2.0]
[1724795832344,0.5831304,2494.6,2493.1,2.0]
[1724795832634,0.5831304,2494.6,2493.4,2.0]
[1724795832801,0.10020922,2495.2,2493.5,0.55]
[1724795833002,1.62025697,2495.2,2493.5,3.55]
[1724795834422,9.4755,2495.3,2493.7,7.72497746]
[1724795834625,9.4755,2495.3,2493.8,3.0]
[1724795834917,9.5279,2496.0,2494.0,2.0]
[1724795835234,11.05318775,2496.0,2494.0,5.0]
[1724795835402,11.05318775,2496.0,2494.1,0.55]
[1724795835603,0.1001816,2495.9,2494.1,3.55]
[1724795835832,1.21551854,2495.9,2494.1,3.55]
[1724795836236,1.21551854,2495.9,2494.1,3.0]
[1724795836532,1.21551854,2495.9,2493.9,1.698]
[1724795836713,1.21551854,2495.9,2493.8,3.0]
[1724795836917,5.72497746,2495.8,2493.7,9.1467]
[1724795837105,0.79425789,2495.7,2493.7,9.1467]
[1724795837507,5.72497746,2495.4,2493.4,1.698]
[1724795837719,5.72497746,2495.4,2493.1,2.72]
[1724795837720,9.5279,2495.2,2493.1,2.72]
[1724795837890,5.72497746,2495.0,2492.7,1.698]
[1724795838096,0.10025181,2494.9,2492.7,1.698]
[1724795838646,9.5279,2494.5,2492.7,1.698]
[1724795838833,9.5279,2494.5,2491.8,2.0]
[1724795838834,0.10027523,2494.4,2491.8,2.0]
[1724795838997,9.5279,2494.1,2491.9,1.698]
[1724795839192,5.72497746,2493.8,2491.9,1.698]
[1724795839395,5.72497746,2493.8,2491.5,2.32]
[1724795839396,9.5279,2493.3,2491.0,1.607561]
[1724795839646,0.10032043,2493.2,2490.9,1.698]
[1724795839849,0.55,2493.1,2491.0,0.00507795]
[1724795839994,5.82530155,2493.0,2491.0,0.00507795]
[1724795840196,1.53531979,2493.2,2491.5,2.0]
[1724795840419,9.5279,2493.3,2491.6,2.17243043]
[1724795841337,0.1002827,2493.2,2491.6,5.17243043]
[1724795841537,9.5279,2493.3,2491.7,3.0]
[1724795841742,0.10028277,2493.2,2491.7,3.0]
[1724795842062,9.5279,2494.0,2492.3,4.01233]
[1724795842241,9.5279,2494.0,2492.4,3.55]
[1724795842242,0.10025299,2493.9,2492.4,3.55]
[1724795842400,0.10025299,2493.9,2492.4,0.55]
[1724795843014,10.50144288,2494.0,2492.4,0.55]
[1724795843234,0.10025314,2493.9,2492.4,0.55]
[1724795843808,9.5279,2494.0,2492.4,0.55]
[1724795844437,1.09428297,2495.6,2492.4,0.55]
[1724795844438,9.5667,2494.6,2492.8,2.0]
[1724795844645,9.5667,2494.6,2492.9,2.248]
[1724795844857,9.5667,2495.5,2493.2,6.01088]
[1724795845070,0.10021378,2495.4,2493.3,0.55]
[1724795845347,0.10021378,2495.4,2493.4,1.698]
[1724795845531,0.10021378,2495.4,2493.5,0.55]
[1724795845708,1.6394029,2495.4,2493.5,0.55]
[1724795847612,1.6394029,2495.4,2493.4,4.698]
[1724795849712,1.6394029,2495.4,2493.5,9.8663]
[1724795849923,0.10020148,2495.8,2493.9,4.00964]
[1724795850350,0.10020148,2495.8,2494.0,3.0]
[1724795850852,0.10020148,2495.8,2494.0,4.698]
[1724795851053,1.0917949,2495.8,2494.0,4.698]
[1724795851355,0.10019286,2495.7,2494.0,1.698]
[1724795852220,0.10019286,2495.7,2493.3,2.32]
[1724795852221,5.72497746,2495.5,2493.3,2.32]
[1724795852419,0.10023108,2495.4,2493.3,2.32]
[1724795852629,0.65023108,2495.4,2493.3,2.32]
[1724795852832,9.7419,2495.3,2493.0,1.698]
[1724795853138,5.72497746,2495.1,2493.0,1.698]
[1724795853357,0.73776878,2495.0,2493.0,1.698]
[1724795853920,0.73776878,2495.0,2493.0,1.670627]
[1724795855563,0.73776878,2495.0,2493.0,4.670627]
[1724795859447,0.55,2495.2,2493.6,2.0]
[1724795859448,0.1002475,2495.2,2493.6,2.0]
[1724795859659,0.1002475,2495.2,2493.6,4.670627]
[1724795859858,0.1002475,2495.2,2493.6,1.670627]
[1724795861899,0.1002475,2495.2,2493.4,3.0]
[1724795862108,1.02598225,2495.2,2493.0,4.688]
[1724795862286,1.02598225,2495.2,2493.1,0.5523936]
[1724795862488,1.02598225,2495.2,2493.2,2.0]
[1724795862673,9.1571,2495.3,2493.2,2.0]
[1724795862674,1.0907519,2495.7,2493.7,7.72497746]
[1724795862874,9.3787,2496.2,2493.8,14.60802614]
[1724795863114,0.10019288,2496.1,2493.8,18.61786614]
[1724795863405,0.10019294,2496.0,2493.9,4.00974]
[1724795863564,0.10019294,2496.0,2494.0,3.57422614]
[1724795863764,0.10019203,2495.9,2494.1,4.00936]
[1724795864003,0.10019203,2495.9,2494.2,3.0]
[1724795864204,0.10019203,2495.9,2494.2,7.00927]
[1724795864743,0.10018584,2496.0,2494.2,3.0]
[1724795865044,1.14308383,2496.0,2494.1,3.0]
[1724795865749,1.14308383,2496.0,2494.1,8.72497746]
[1724795865911,1.14308383,2496.0,2494.1,12.73438746]
[1724795866111,1.14308383,2496.0,2494.1,8.72497746]
[1724795867355,1.14308383,2496.0,2494.3,4.009]
[1724795867519,9.3787,2496.2,2494.6,2.0]
[1724795867709,0.10015949,2496.1,2494.6,2.0]
[1724795868046,0.10015949,2496.1,2494.6,5.0]
[1724795868711,0.10015949,2496.1,2494.6,40.0]
[1724795868909,9.3787,2496.2,2494.6,40.0]
[1724795869133,0.10015811,2496.1,2494.6,38.0]
[1724795869339,0.10015811,2496.1,2494.5,5.72497746]
[1724795869721,0.10015811,2496.1,2494.7,0.62774071]
[1724795870210,0.42236399,2496.9,2495.1,11.1081]
[1724795871347,0.42236399,2496.9,2495.2,3.0]
[1724795872032,9.1596,2496.7,2495.2,3.0]
[1724795872366,9.1596,2496.7,2494.8,3.688]
[1724795872367,0.10015779,2496.6,2494.8,1.688]
[1724795872847,6.14734145,2496.9,2494.1,7.72497746]
[1724795872848,10.07556985,2496.2,2494.1,7.72497746]
[1724795873034,1.01978109,2496.1,2494.1,5.72497746]
[1724795873233,1.01978109,2496.1,2493.9,1.688]
[1724795873234,0.10019998,2496.0,2493.9,1.688]
[1724795873409,9.817,2495.9,2493.9,1.688]
[1724795873608,1.09194172,2495.8,2493.9,1.688]
[1724795873849,0.10022172,2495.7,2494.2,7.72497746]
[1724795874019,10.15686399,2496.9,2494.6,5.72497746]
[1724795874358,10.15686399,2496.9,2494.7,1.688]
[1724795874359,0.10017433,2496.8,2494.7,1.688]
[1724795874555,0.10017433,2496.8,2494.7,37.36261448]
[1724795874851,0.10017433,2496.8,2494.8,3.0]
[1724795875346,10.15686399,2496.9,2494.9,35.0]
[1724795875654,0.10015581,2496.8,2495.0,3.0]
[1724795876715,0.10015581,2496.8,2495.0,7.00789]
[1724795876916,0.10015581,2496.8,2495.0,3.0]
[1724795878745,0.10015581,2496.8,2494.8,3.63144728]
[1724795879316,0.10015581,2496.8,2494.8,4.63977728]
[1724795879653,10.15686399,2496.9,2494.9,7.00816]
[1724795879952,10.15686399,2496.9,2494.8,0.63144728]
[1724795879953,0.10015711,2496.8,2495.0,3.0]
[1724795880160,0.10015711,2496.8,2494.9,2.0]
[1724795880450,0.10015711,2496.8,2494.9,9.00808]
[1724795880650,10.07477161,2496.2,2494.7,1.688]
[1724795880861,10.07477161,2496.2,2494.5,5.04]
[1724795880862,1.01970126,2496.1,2494.5,5.04]
[1724795881150,0.10018267,2496.0,2494.5,5.04]
[1724795882734,0.10018267,2496.0,2494.2,1.688]
[1724795882935,10.5246,2495.9,2493.5,0.41770226]
[1724795883125,10.5246,2495.9,2493.4,7.41297746]
[1724795883126,9.1054,2495.7,2493.4,7.41297746]
[1724795883479,0.10021862,2495.6,2493.4,7.83089219]
[1724795883647,0.10021862,2495.6,2493.4,2.10591473]
[1724795883816,0.10021862,2495.6,2493.4,1.688]
[1724795883817,1.12702831,2495.6,2493.4,1.688]
[1724795884018,9.1054,2495.5,2493.4,1.688]
[1724795884237,0.10022235,2495.4,2493.4,1.688]
[1724795885963,9.1054,2495.3,2493.4,1.688]
[1724795886166,0.10022247,2495.2,2493.4,1.688]
[1724795886328,1.02078472,2495.2,2493.4,1.688]
[1724795887289,9.1054,2495.3,2493.8,7.72497746]
[1724795887490,9.1054,2495.3,2493.9,4.688]
[1724795887788,9.1054,2495.3,2494.0,35.0]
[1724795887990,9.1054,2495.3,2494.1,3.0]
[1724795888862,9.0413,2495.8,2494.1,5.0]
[1724795889062,0.122241,2496.3,2494.1,5.0]
[1724795889063,0.122241,2496.3,2495.0,5.72497746]
[1724795889365,0.122241,2496.3,2495.1,4.688]
[1724795889599,0.122241,2496.3,2495.1,39.688]
[1724795889800,0.1001456,2496.2,2495.1,4.688]
[1724795890013,0.1001456,2496.2,2494.7,3.0]
[1724795890463,0.1001456,2496.2,2494.6,2.72]
[1724795890669,1.11814967,2496.2,2494.6,2.72]
[1724795890967,9.0601,2496.1,2494.6,2.72]
[1724795891211,0.10018885,2496.0,2494.6,2.72]
[1724795891502,9.0601,2495.9,2493.9,2.32]
[1724795891705,1.01622924,2495.8,2493.9,4.008]
[1724795892276,9.0601,2495.7,2493.9,4.008]
[1724795892471,9.16031893,2495.6,2493.5,2.72]
[1724795893717,9.024,2495.5,2493.5,2.72]
[1724795893881,0.10022304,2495.4,2493.5,2.72]
[1724795895539,9.5936,2495.3,2493.6,3.0]
[1724795895841,1.06960538,2495.2,2493.6,3.0]
[1724795896508,9.5936,2495.1,2493.6,3.0]
[1724795896700,0.10023572,2495.0,2493.4,0.06935629]
[1724795896899,9.5936,2495.1,2493.4,0.06935629]
[1724795897135,0.10023563,2495.0,2493.4,0.06935629]
[1724795897336,1.06961919,2495.0,2493.4,0.06935629]
[1724795897637,9.5936,2495.1,2493.8,7.72497746]
[1724795897847,9.5936,2495.1,2494.1,2.0]
[1724795898016,9.5936,2496.2,2494.2,6.25271627]
[1724795898344,1.07176547,2496.1,2494.4,2.0]
[1724795898641,1.07176547,2496.1,2494.5,1.73676648]
[1724795898809,1.07176547,2496.1,2494.5,4.73676648]
[1724795899156,9.5936,2496.2,2494.9,6.00817]
[1724795899440,9.5936,2496.2,2495.0,4.73671387]
[1724795899802,9.5936,2496.2,2495.0,4.688]
[1724795900032,9.5936,2496.2,2495.0,1.688]
[1724795900437,0.10016196,2496.1,2495.0,1.688]
[1724795900638,1.08176226,2496.1,2494.2,5.72497746]
[1724795900845,1.08176226,2496.1,2494.1,2.32]
[1724795900846,9.5936,2496.0,2494.1,2.32]
[1724795900997,0.10020697,2495.9,2494.0,1.688]
[1724795901431,9.5936,2495.8,2494.0,1.688]
[1724795901645,0.10020698,2495.7,2494.0,1.688]
[1724795901816,1.06958768,2495.7,2494.0,1.688]
[1724795902025,1.06958768,2495.7,2494.1,0.04886242]
[1724795902846,9.5936,2495.6,2493.3,7.72497746]
[1724795903006,0.10022314,2495.5,2493.4,1.75735629]
[1724795903211,9.5936,2495.4,2493.4,1.75735629]
[1724795903538,0.1002231,2495.3,2493.4,1.75735629]
[1724795904519,0.1002231,2495.3,2493.4,4.75735629]
[1724795905247,9.5936,2495.4,2493.8,2.0]
[1724795905449,9.5936,2495.4,2493.9,2.72121167]
[1724795905620,9.9152,2496.0,2494.4,2.0]
[1724795905960,9.9152,2496.0,2494.5,35.59875044]
[1724795906447,9.9152,2496.0,2494.6,3.0]
[1724795907312,0.10016821,2495.9,2494.6,3.0]
[1724795907922,9.9152,2496.0,2494.6,5.0]
[1724795908125,9.0683,2496.6,2494.9,2.0]
[1724795908321,9.0683,2496.6,2495.0,1.73671755]
[1724795908648,9.0683,2496.6,2495.0,4.73671755]
[1724795908810,0.10015212,2496.5,2495.0,4.73671755]
[1724795909117,0.42236399,2496.9,2495.7,9.4468]
[1724795909320,0.42236399,2496.9,2495.8,4.688]
[1724795910283,9.4513,2496.7,2495.1,0.50636096]
[1724795910446,0.10018715,2496.2,2494.9,0.422364]
[1724795910651,0.10018715,2496.2,2494.5,1.688]
[1724795911189,9.9586,2496.1,2494.5,1.688]
[1724795911358,1.1060713,2496.0,2494.5,1.688]
[1724795911562,1.1060713,2496.0,2494.5,2.33704891]
[1724795912085,9.5951,2496.8,2495.1,17.18647746]
[1724795912289,9.5951,2496.8,2495.2,2.90959055]
[1724795912446,9.5951,2496.8,2495.4,2.0]
[1724795912646,0.42236399,2496.9,2495.7,6.00687]
[1724795912883,0.42236399,2496.9,2495.8,5.85792045]
[1724795913155,0.42236399,2496.9,2495.8,4.688]
[1724795913360,0.42236399,2496.9,2495.9,3.0]
[1724795913575,0.42236399,2496.9,2495.8,1.688]
[1724795913777,0.42236399,2496.9,2496.0,0.04865067]
[1724795913978,0.42236399,2496.9,2495.9,3.0]
[1724795915072,0.10012292,2496.8,2495.8,1.688]
[1724795916364,0.10012292,2496.8,2495.2,3.0]
[1724795916701,0.10012292,2496.8,2495.2,4.688]
[1724795916903,0.10012292,2496.8,2495.2,7.74084378]
[1724795917113,0.42236399,2496.9,2495.5,2.0]
[1724795917277,0.42236399,2496.9,2495.5,5.72497746]
[1724795917470,0.10014265,2496.8,2495.4,3.0]
[1724795917696,0.10014265,2496.8,2495.2,4.688]
[1724795917900,0.10014265,2496.8,2495.3,0.5550558]
[1724795918507,0.42236399,2496.9,2495.5,5.72497746]
[1724795918820,0.42236399,2496.9,2495.6,3.04865649]
[1724795919021,0.42236399,2496.9,2495.7,1.688]
[1724795919309,0.42236399,2496.9,2495.8,0.04865315]
[1724795919474,0.42236399,2496.9,2495.9,0.04865282]
[1724795919873,0.42236399,2496.9,2495.7,1.688]
[1724795920287,0.42236399,2496.9,2495.7,2.110364]
[1724795920476,0.42236399,2496.9,2495.7,36.688]
[1724795920991,9.402341,2496.3,2494.7,7.72497746]
[1724795921202,9.402341,2496.3,2494.9,3.142364]
[1724795921203,0.10016252,2496.2,2494.9,3.142364]
[1724795921717,0.10016252,2496.2,2494.9,2.72]
[1724795922077,9.402341,2496.3,2495.0,0.55316007]
[1724795922292,9.402341,2496.3,2495.0,3.04871862]
[1724795922507,0.10015872,2496.2,2495.0,3.0]
[1724795922817,0.10015872,2496.2,2494.9,2.72]
[1724795922818,0.59853246,2496.2,2494.9,2.72]
[1724795924124,0.09148896,2496.1,2494.9,2.72]
[1724795924302,0.09148896,2496.1,2494.7,1.688]
[1724795924887,0.1001878,2496.1,2494.7,1.688]
[1724795925327,1.10027805,2496.1,2494.7,1.688]
[1724795925529,9.8793,2496.0,2494.2,0.06928781]
[1724795925738,9.9624,2495.7,2494.2,0.06928781]
[1724795925902,9.9624,2495.5,2494.2,0.06928781]
[1724795926097,0.10022246,2495.4,2494.2,0.06928781]
[1724795928194,0.10019721,2495.4,2494.2,0.06928781]
[1724795928531,0.10019721,2495.4,2494.3,0.04882561]
[1724795928904,9.9624,2495.5,2494.4,1.688]
[1724795929307,9.9624,2495.5,2494.5,0.57313189]
[1724795930058,10.02876399,2496.9,2495.1,6.00785]
[1724795930256,10.02876399,2496.9,2495.5,2.0]
[1724795930536,10.02876399,2496.9,2495.6,0.04866686]
[1724795931034,10.02876399,2496.9,2495.7,1.688]
[1724795931345,0.42236399,2496.9,2496.1,11.73120746]
[1724795931497,0.42236399,2496.9,2496.2,3.0]
[1724795932130,0.42236399,2496.9,2496.2,38.0]
[1724795932522,0.42236399,2496.9,2496.2,3.0]
[1724795932707,0.42236399,2496.9,2495.8,3.0]
[1724795932909,0.42236399,2496.9,2495.9,37.0]
[1724795933116,0.42236399,2496.9,2496.0,3.0]
[1724795933411,0.00251586,2498.0,2497.1,2.0]
[1724795933924,0.00251586,2498.0,2497.2,9.0825]
[1724795934096,0.00251586,2498.0,2497.3,3.04852107]
[1724795934743,0.00251586,2498.0,2497.3,3.0]
[1724795935032,9.630741,2498.8,2497.3,3.0]
[1724795935195,0.09416354,2498.7,2497.3,3.0]
[1724795935797,0.09416354,2498.7,2496.9,4.008]
[1724795935999,0.09416354,2498.7,2496.3,5.72497746]
[1724795936000,9.844,2498.5,2496.1,11.817]
[1724795936337,0.09416354,2498.4,2496.2,1.688]
[1724795936497,1.65106129,2498.4,2496.2,1.688]
[1724795936699,1.65106129,2498.4,2496.2,1.76808694]
[1724795936898,1.65106129,2498.4,2496.3,0.08008694]
[1724795937515,1.65106129,2498.4,2496.3,0.57828174]
[1724795937754,1.14950613,2498.3,2496.2,1.688]
[1724795937922,0.09416354,2498.2,2496.2,1.688]
[1724795938450,9.5704,2498.1,2496.2,4.688]
[1724795938657,0.09416354,2498.0,2496.2,1.688]
[1724795938957,1.05120354,2498.0,2496.2,1.688]
[1724795940690,9.1108,2497.7,2495.2,2.0]
[1724795940903,9.1108,2497.5,2495.3,1.688]
[1724795941062,0.09416354,2497.4,2495.3,1.688]
[1724795941959,9.6608,2497.3,2494.9,2.0]
[1724795942212,9.20496354,2497.2,2494.9,2.0]
[1724795942497,14.83577746,2497.0,2494.9,2.0]
[1724795942703,0.09416354,2496.9,2494.9,2.0]
[1724795943305,9.1108,2496.8,2494.9,1.06270049]
[1724795943501,0.09416354,2496.7,2494.9,1.06270049]
[1724795943744,1.01465989,2496.7,2494.9,1.06270049]
[1724795943915,1.01465989,2496.7,2495.0,0.08013568]
[1724795944207,9.1108,2496.8,2495.3,2.0]
[1724795944411,9.1108,2496.8,2495.7,2.0]
[1724795944701,9.1108,2496.8,2495.8,0.08010487]
[1724795946420,9.1473,2497.6,2496.0,2.0]
[1724795946603,0.09416354,2497.5,2496.1,0.08009314]
[1724795947411,0.09416354,2497.5,2496.0,2.0]
[1724795948125,0.09416354,2497.5,2495.7,5.0]
[1724795948314,1.01830989,2497.5,2495.8,35.55]
[1724795948635,1.01830989,2497.5,2495.9,5.0]
[1724795948836,1.01830989,2497.5,2495.9,3.0]
[1724795949198,1.01830989,2497.5,2495.7,5.0]
[1724795954819,9.7529,2497.4,2495.3,2.72]
[1724795955093,1.17128453,2497.3,2495.3,3.25942141]
[1724795955260,9.84706354,2497.2,2495.3,2.72]
[1724795955596,9.7529,2497.0,2495.3,2.72]
[1724795955752,0.09416354,2496.9,2495.3,2.72]
[1724795955959,9.2417,2496.8,2495.3,2.72]
[1724795956186,0.09416354,2496.7,2495.3,2.72]
[1724795957393,0.09416354,2496.7,2495.4,3.0]
[1724795959380,9.2417,2496.8,2495.6,2.0]
[1724795959898,9.2417,2496.8,2495.7,0.53942141]
[1724795960095,5.72497746,2497.8,2495.8,0.08010529]
[1724795960096,9.2417,2497.7,2495.8,0.08010529]
[1724795960308,1.59083129,2497.6,2495.8,0.08010529]
[1724795961068,1.59083129,2497.6,2495.9,35.0]
[1724795961267,1.59083129,2497.6,2496.0,3.08010532]
[1724795961958,0.09416354,2497.5,2496.0,3.08010532]
[1724795962162,0.09416354,2497.5,2496.2,2.0]
[1724795962401,0.09416354,2497.5,2496.3,0.08009211]
[1724795962605,0.09416354,2497.5,2496.3,0.08009218]
[1724795962961,0.09416354,2497.5,2496.3,3.0]
[1724795963161,0.09416354,2497.5,2496.2,2.0]
[1724795963397,0.09416354,2497.6,2496.2,2.0]
[1724795963996,0.09416354,2497.6,2496.2,3.688]
[1724795964199,0.09416354,2497.6,2496.3,3.0]
[1724795964612,1.02774989,2497.6,2496.3,3.0]
[1724795968165,1.02774989,2497.6,2496.2,1.688]
[1724795972306,15.62924696,2497.5,2495.6,0.41855476]
[1724795972466,0.09416354,2497.4,2495.6,2.10655476]
[1724795972669,9.9758,2497.3,2495.6,2.10655476]
[1724795972895,0.09416354,2497.2,2495.6,2.23870971]
[1724795973107,1.09174354,2497.2,2495.6,2.23870971]
[1724795973311,1.09174354,2497.2,2495.7,0.08011699]
[1724795973825,1.09174354,2497.2,2495.6,2.23870971]
[1724795973986,1.09174354,2497.2,2495.7,0.0801225]
[1724795974191,1.10675435,2497.1,2495.7,0.0801225]
[1724795974523,0.09416354,2497.0,2495.7,0.0801225]
[1724795974689,9.7116,2496.9,2495.5,3.0]
[1724795974892,1.07473989,2496.8,2495.5,3.0]
[1724795975102,0.09416354,2496.7,2495.5,3.0]
[1724795976951,0.09416354,2496.7,2495.4,0.06974377]
[1724795978521,5.65344696,2496.6,2495.4,0.06974377]
[1724795978724,9.8801,2496.4,2495.4,0.06974377]
[1724795978883,1.09158989,2496.3,2495.4,0.06974377]
[1724795979784,9.8801,2496.1,2495.4,0.06974377]
[1724795979980,9.8801,2495.9,2494.5,0.62718664]
[1724795980219,0.09416354,2495.8,2494.9,0.06977371]
[1724795980422,5.65344696,2495.6,2494.1,0.62779491]
[1724795980718,9.8801,2495.4,2494.1,0.06979548]
[1724795980925,0.09416354,2495.3,2494.1,0.06979548]
[1724795981083,9.0454,2495.2,2494.1,0.06979548]
[1724795981309,1.57346459,2495.1,2494.1,0.06979548]
[1724795981946,0.09416354,2495.1,2494.1,0.06979548]
[1724795982128,1.09428297,2495.9,2494.1,0.06979548]
[1724795982129,0.72952198,2496.2,2494.2,0.08016662]
[1724795982312,9.92276354,2496.1,2494.5,2.0]
[1724795982511,9.8286,2496.1,2494.9,2.0]
[1724795982714,9.8286,2496.1,2494.9,2.06617523]
[1724795983142,9.8286,2496.1,2495.0,5.73357813]
[1724795983343,9.2439,2497.0,2495.4,2.0]
[1724795983517,0.09416354,2496.9,2495.5,0.63011003]
[1724795983912,0.09416354,2496.9,2495.6,0.08011007]
[1724795986531,0.09416354,2496.9,2495.5,3.55]
[1724795987106,0.09416354,2496.9,2495.4,4.0899]
[1724795987107,0.09416354,2496.9,2495.4,2.0899]
[1724795987943,0.09416354,2496.9,2495.4,4.0899]
[1724795988239,1.12040889,2496.9,2495.4,4.0899]
[1724795988441,1.12040889,2496.9,2495.5,3.0]
[1724795988647,1.12040889,2496.9,2495.4,2.0899]
[1724795988648,1.12040889,2496.9,2495.4,0.4019]
[1724795989115,1.12040889,2496.9,2494.7,2.32]
[1724795989116,9.2149,2496.8,2494.7,2.32]
[1724795989305,0.09416354,2496.7,2494.7,2.32]
[1724795989511,0.55,2496.6,2494.7,2.32]
[1724795989706,0.09416354,2496.5,2494.7,2.32]
[1724795990303,0.09416354,2496.5,2494.8,0.44754467]
[1724795991336,0.09416354,2496.5,2494.8,3.44754467]
[1724795991524,0.09416354,2496.5,2494.9,3.0]
[1724795991841,0.09416354,2496.5,2494.9,5.0]
[1724795992149,0.09416354,2496.5,2495.0,3.0]
[1724795992346,0.09416354,2496.5,2494.9,2.0]